fUSD/lending_fUSD_20260514
["ID","MTS","AMOUNT","RATE_DAILY","PERIOD"]
[422201614,1778688390000,-215.09534372,0.00010699,2]
[422201625,1778688628000,182.3,8.357e-05,2]
[422201624,1778688628000,182.3,6.33e-05,2]
[422201713,1778688632000,-5316.4753176,0.00013599,2]
[422201662,1778688632000,-776.16,0.00012974,2]
[422201647,1778688632000,-334.22796898,0.00011769,2]
[422201654,1778688632000,-500.0,0.00012523,2]
[422201652,1778688632000,-182.3,0.00012411,2]
[422201651,1778688632000,-208.27114069,0.00011971,2]
[422201648,1778688632000,-1680.0,0.00011769,2]
[422201649,1778688632000,-1697.38078062,0.000119,2]
[422201646,1778688632000,-193.0,0.00011761,2]
[422201644,1778688632000,-150.73183692,0.00011711,2]
[422201645,1778688632000,-255.0,0.00011737,2]
[422201642,1778688632000,-150.0,0.000107,2]
[422201639,1778688632000,-150.0,0.000107,2]
[422201643,1778688632000,-150.0,0.000107,2]
[422201641,1778688632000,-150.0,0.000107,2]
[422201640,1778688632000,-150.0,0.000107,2]
[422201638,1778688632000,-79882.28033658,0.000107,2]
[422201636,1778688632000,-300.0,0.00010699,2]
[422201635,1778688632000,-1200.0,0.00010699,2]
[422201637,1778688632000,-4584.5968887,0.000107,2]
[422201633,1778688632000,-165.79056391,0.00010647,2]
[422201634,1778688632000,-150.0,0.00010699,2]
[422201632,1778688632000,-182.3,0.00010384,2]
[422201660,1778688632000,-2351.0,0.00012946,2]
[422201656,1778688632000,-165.52,0.00012702,2]
[422201650,1778688632000,-160.0,0.00011961,2]
[422201664,1778688632000,-150.0,0.00012976,2]
[422201711,1778688632000,-1118.0,0.00013599,2]
[422201704,1778688632000,-29533.36863523,0.00013599,2]
[422201700,1778688632000,-22843.90257906,0.00013599,2]
[422201709,1778688632000,-732.37982675,0.00013599,2]
[422201691,1778688632000,-1435.8,0.00013494,2]
[422201658,1778688632000,-433.0,0.00012871,2]
[422201705,1778688632000,-563.02382865,0.00013599,2]
[422201702,1778688632000,-5592.36879863,0.00013599,2]
[422201695,1778688632000,-7829.17763472,0.00013508,2]
[422201697,1778688632000,-103046.63505254,0.00013599,2]
[422201693,1778688632000,-525.37657931,0.00013508,2]
[422201689,1778688632000,-150.0,0.00013488,2]
[422201706,1778688632000,-2217.8025301,0.00013599,2]
[422201681,1778688632000,-150.0,0.00013488,2]
[422201687,1778688632000,-150.0,0.00013488,2]
[422201666,1778688632000,-403.06,0.00012984,2]
[422201668,1778688632000,-1000.0,0.00013377,2]
[422201670,1778688632000,-702.44,0.00013377,2]
[422201674,1778688632000,-150.0,0.00013488,2]
[422201672,1778688632000,-3022.0,0.00013377,2]
[422201679,1778688632000,-150.0,0.00013488,2]
[422201683,1778688632000,-150.0,0.00013488,2]
[422201676,1778688632000,-150.0,0.00013488,2]
[422201685,1778688632000,-150.0,0.00013488,2]
[422201763,1778688638000,-150.0,0.00013638,2]
[422201769,1778688638000,-4102.33,0.00013699,2]
[422201768,1778688638000,-495.67,0.00013699,2]
[422201766,1778688638000,-953.6,0.00013699,2]
[422201765,1778688638000,-14153.9,0.00013699,2]
[422201764,1778688638000,-7829.17763471,0.00013663,2]
[422201757,1778688638000,-1053.62291743,0.00013599,2]
[422201760,1778688638000,-304.99,0.00013608,2]
[422201759,1778688638000,-269025.95273207,0.00013599,2]
[422201761,1778688638000,-5671.0,0.00013608,2]
[422201758,1778688638000,-78999.99999999,0.00013599,2]
[422201756,1778688638000,-5026.69068195,0.00013599,2]
[422201767,1778688638000,-9999.99,0.00013699,2]
[422201762,1778688638000,-150.0,0.00013638,2]
[422201771,1778688638000,-62927.61,0.00013699,2]
[422201770,1778688638000,-150.99,0.00013699,2]
[422201772,1778688638000,-999.99,0.00013699,2]
[422201773,1778688638000,-4622.25,0.00013699,2]
[422201788,1778688638000,-150.0,0.00013787,2]
[422201784,1778688638000,-150.0,0.00013787,2]
[422201796,1778688638000,-525.37657927,0.00013906,2]
[422201794,1778688638000,-1435.8,0.00013831,2]
[422201792,1778688638000,-7829.17763471,0.00013817,2]
[422201790,1778688638000,-166.66,0.00013793,2]
[422201786,1778688638000,-150.0,0.00013787,2]
[422201779,1778688638000,-525.37657927,0.00013707,2]
[422201778,1778688638000,-2500.0,0.00013699,2]
[422201776,1778688638000,-14249.45,0.00013699,2]
[422201777,1778688638000,-200.0,0.00013699,2]
[422201775,1778688638000,-299.99,0.00013699,2]
[422201781,1778688638000,-2000.0,0.00013723,2]
[422201774,1778688638000,-4999.99,0.00013699,2]
[422201895,1778688639000,-166.66,0.00014374,2]
[422201888,1778688639000,-3239.4672908,0.00014372,2]
[422201878,1778688639000,-1844.4543196,0.00014364,2]
[422201873,1778688639000,-4332.32394675,0.00014362,2]
[422201867,1778688639000,-392.66,0.00014344,2]
[422201875,1778688639000,-618.90342096,0.00014363,2]
[422201859,1778688639000,-618.903421,0.00014273,2]
[422201865,1778688639000,-283.851609,0.00014338,2]
[422201863,1778688639000,-525.37657927,0.00014303,2]
[422201889,1778688639000,-91627.2947911,0.00014372,2]
[422201869,1778688639000,-182.96,0.00014344,2]
[422201891,1778688639000,-316.6024253,0.00014372,2]
[422201904,1778688639000,-2400.0,0.000144,5]
[422201879,1778688639000,-150.0,0.00014371,2]
[422201897,1778688639000,-150.0,0.00014387,2]
[422201882,1778688639000,-500.0,0.00014371,2]
[422201884,1778688639000,-500.0,0.00014371,2]
[422201886,1778688639000,-9150.6433862,0.00014372,2]
[422201899,1778688639000,-150.0,0.00014387,2]
[422201862,1778688639000,-1800.0,0.000143,5]
[422201905,1778688639000,-2000.0,0.00014404,2]
[422201911,1778688639000,-262.68828967,0.00014451,2]
[422201913,1778688639000,-4332.32394675,0.00014451,2]
[422201907,1778688639000,-350.0,0.00014437,2]
[422201902,1778688639000,-150.0,0.00014387,2]
[422201909,1778688639000,-150.0,0.00014444,2]
[422201893,1778688639000,-318667.707685,0.00014372,2]
[422201857,1778688639000,-162.69145635,0.00014273,2]
[422201842,1778688639000,-150.0,0.00014237,2]
[422201855,1778688639000,-1154.8543,0.00014272,2]
[422201917,1778688639000,-165.269112,0.00014491,2]
[422201798,1778688639000,-500.0,0.00013906,2]
[422201803,1778688639000,-150.0,0.00013937,2]
[422201801,1778688639000,-150.0,0.00013937,2]
[422201816,1778688639000,-150.0,0.00014087,2]
[422201818,1778688639000,-150.0,0.00014087,2]
[422201820,1778688639000,-150.0,0.00014087,2]
[422201807,1778688639000,-4067.92714569,0.0001399,2]
[422201825,1778688639000,-525.37657927,0.00014105,2]
[422201822,1778688639000,-600.0,0.000141,5]
[422201805,1778688639000,-7829.17763471,0.00013972,2]
[422201827,1778688639000,-736.0,0.00014123,2]
[422201854,1778688639000,-2152.206,0.00014272,2]
[422201809,1778688639000,-250.0,0.00014,2]
[422201814,1778688639000,-166.66,0.00014083,2]
[422201829,1778688639000,-1435.8,0.00014169,2]
[422201835,1778688639000,-150.0,0.00014237,2]
[422201839,1778688639000,-150.0,0.00014237,2]
[422201833,1778688639000,-1200.0,0.000142,5]
[422201831,1778688639000,-500.0,0.0001418,2]
[422201846,1778688639000,-384584.8408,0.00014244,2]
[422201837,1778688639000,-150.0,0.00014237,2]
[422201848,1778688639000,-200.0,0.00014252,2]
[422201844,1778688639000,-3292.0,0.0001424,2]
[422201849,1778688639000,-4332.32394681,0.00014272,2]
[422201852,1778688639000,-218.16896588,0.00014272,2]
[422201811,1778688639000,-400.9825981,0.00014068,2]
[422201915,1778688639000,-618.90342096,0.00014452,2]
[422201871,1778688639000,-298.05,0.00014344,2]
[422201920,1778688639000,-525.37657927,0.00014502,2]
[422201991,1778688639000,-813.0,0.00014629,2]
[422201981,1778688639000,-813.0,0.00014629,2]
[422201993,1778688639000,-813.0,0.00014629,2]
[422201987,1778688639000,-813.0,0.00014629,2]
[422201985,1778688639000,-813.0,0.00014629,2]
[422201983,1778688639000,-200.82917697,0.00014629,2]
[422201995,1778688639000,-500.0,0.00014629,2]
[422201988,1778688639000,-813.0,0.00014629,2]
[422202000,1778688639000,-500.0,0.00014629,2]
[422202002,1778688639000,-813.0,0.00014629,2]
[422201997,1778688639000,-813.0,0.00014629,2]
[422202004,1778688639000,-500.0,0.00014629,2]
[422202016,1778688639000,-813.0,0.00014629,2]
[422202014,1778688639000,-813.0,0.00014629,2]
[422202018,1778688639000,-813.0,0.00014629,2]
[422202006,1778688639000,-813.0,0.00014629,2]
[422202023,1778688639000,-814.3184214,0.00014629,2]
[422202010,1778688639000,-813.0,0.00014629,2]
[422202025,1778688639000,-500.0,0.00014629,2]
[422202020,1778688639000,-813.0,0.00014629,2]
[422202012,1778688639000,-813.0,0.00014629,2]
[422202029,1778688639000,-500.0,0.00014629,2]
[422202027,1778688639000,-500.0,0.00014629,2]
[422202038,1778688639000,-4332.32394675,0.00014631,2]
[422202031,1778688639000,-500.0,0.00014629,2]
[422202035,1778688639000,-220.63403268,0.00014629,2]
[422201918,1778688639000,-3000.0,0.000145,5]
[422201979,1778688639000,-150.0,0.00014629,2]
[422201975,1778688639000,-150.0,0.00014629,2]
[422202008,1778688639000,-401.20558508,0.00014629,2]
[422201961,1778688639000,-500.0,0.00014629,2]
[422201977,1778688639000,-813.0,0.00014629,2]
[422201924,1778688639000,-500.0,0.00014504,2]
[422201923,1778688639000,-172.0,0.00014504,2]
[422201926,1778688639000,-1435.8,0.00014506,2]
[422201932,1778688639000,-150.0,0.00014537,2]
[422201930,1778688639000,-150.0,0.00014537,2]
[422201936,1778688639000,-618.90342096,0.00014542,2]
[422201928,1778688639000,-262.68828964,0.00014515,2]
[422201938,1778688639000,-262.68828964,0.00014579,2]
[422201950,1778688639000,-813.0,0.00014629,2]
[422201940,1778688639000,-600.0,0.000146,5]
[422201948,1778688639000,-500.0,0.00014629,2]
[422201944,1778688639000,-813.0,0.00014629,2]
[422201934,1778688639000,-4332.32394675,0.00014541,2]
[422201942,1778688639000,-152.0,0.00014606,7]
[422202034,1778688639000,-500.0,0.00014629,2]
[422201946,1778688639000,-813.0,0.00014629,2]
[422201959,1778688639000,-813.0,0.00014629,2]
[422201957,1778688639000,-500.0,0.00014629,2]
[422201956,1778688639000,-813.0,0.00014629,2]
[422201969,1778688639000,-150.0,0.00014629,2]
[422201973,1778688639000,-475.9098632,0.00014629,2]
[422201963,1778688639000,-150.0,0.00014629,2]
[422201967,1778688639000,-500.0,0.00014629,2]
[422201965,1778688639000,-813.0,0.00014629,2]
[422201954,1778688639000,-150.0,0.00014629,2]
[422201971,1778688639000,-813.0,0.00014629,2]
[422201951,1778688639000,-500.0,0.00014629,2]
[422202126,1778688640000,-500.0,0.00014852,2]
[422202082,1778688640000,-4332.32394675,0.0001481,2]
[422202084,1778688640000,-618.90342096,0.0001481,2]
[422202080,1778688640000,-600.0,0.000148,5]
[422202098,1778688640000,-500.0,0.00014852,2]
[422202086,1778688640000,-200.0,0.00014817,2]
[422202101,1778688640000,-500.0,0.00014852,2]
[422202104,1778688640000,-500.0,0.00014852,2]
[422202106,1778688640000,-500.0,0.00014852,2]
[422202109,1778688640000,-500.0,0.00014852,2]
[422202112,1778688640000,-500.0,0.00014852,2]
[422202114,1778688640000,-500.0,0.00014852,2]
[422202103,1778688640000,-500.0,0.00014852,2]
[422202116,1778688640000,-500.0,0.00014852,2]
[422202118,1778688640000,-500.0,0.00014852,2]
[422202120,1778688640000,-500.0,0.00014852,2]
[422202123,1778688640000,-500.0,0.00014852,2]
[422202124,1778688640000,-500.0,0.00014852,2]
[422202096,1778688640000,-500.0,0.00014852,2]
[422202110,1778688640000,-500.0,0.00014852,2]
[422202078,1778688640000,-150.0,0.00014795,2]
[422202064,1778688640000,-618.90342096,0.00014721,2]
[422202092,1778688640000,-150.0,0.00014836,2]
[422202131,1778688640000,-500.0,0.00014852,2]
[422202044,1778688640000,-262.68828964,0.00014643,2]
[422202040,1778688640000,-618.90342096,0.00014631,2]
[422202042,1778688640000,-350.0,0.00014635,2]
[422202046,1778688640000,-541.4263,0.00014657,2]
[422202048,1778688640000,-166.66,0.00014664,2]
[422202060,1778688640000,-262.68828964,0.00014708,2]
[422202050,1778688640000,-150.0,0.00014687,2]
[422202056,1778688640000,-600.0,0.000147,5]
[422202062,1778688640000,-4332.32394675,0.00014721,2]
[422202052,1778688640000,-150.0,0.00014687,2]
[422202054,1778688640000,-150.0,0.00014687,2]
[422202058,1778688640000,-525.37657927,0.00014701,2]
[422202068,1778688640000,-194.10569036,0.00014752,2]
[422202066,1778688640000,-428.74514371,0.00014752,2]
[422202072,1778688640000,-262.68828964,0.00014772,2]
[422202071,1778688640000,-500.0,0.00014755,2]
[422202074,1778688640000,-37136.45,0.00014787,2]
[422202077,1778688640000,-150.0,0.00014795,2]
[422202090,1778688640000,-150.0,0.00014836,2]
[422202088,1778688640000,-262.68828964,0.00014836,2]
[422202094,1778688640000,-1435.8,0.00014843,2]
[422202141,1778688640000,-1802.899,0.00014889,2]
[422202143,1778688640000,-3007.66990209,0.00014899,2]
[422202139,1778688640000,-169.416,0.00014887,2]
[422202199,1778688640000,-478.0,0.00014999,2]
[422202197,1778688640000,-151.0,0.00014997,2]
[422202195,1778688640000,-150.0,0.00014986,2]
[422202185,1778688640000,-231.94208573,0.00014986,2]
[422202202,1778688640000,-500.0,0.00014999,2]
[422202204,1778688640000,-500.0,0.00014999,2]
[422202206,1778688640000,-500.0,0.00014999,2]
[422202208,1778688640000,-160.59133501,0.00014999,2]
[422202214,1778688640000,-150.0,0.00015,2]
[422202182,1778688640000,-625.2925,0.0001498,2]
[422202210,1778688640000,-300.0,0.00014999,2]
[422202216,1778688640000,-10309560.80313134,0.00015,2]
[422202245,1778688640000,-282.400006,0.00015,2]
[422202247,1778688640000,-4090.42278231,0.00015,2]
[422202250,1778688640000,-1344.47511989,0.00015,2]
[422202243,1778688640000,-575.47198665,0.00015,2]
[422202254,1778688640000,-3421.66396218,0.00015,2]
[422202256,1778688640000,-2257.78467152,0.00015,2]
[422202252,1778688640000,-944.70001885,0.00015,2]
[422202129,1778688640000,-500.0,0.00014852,2]
[422202212,1778688640000,-154.88,0.00015,2]
[422202193,1778688640000,-150.0,0.00014986,2]
[422202191,1778688640000,-156.93624459,0.00014986,2]
[422202178,1778688640000,-500.0,0.00014945,2]
[422202133,1778688640000,-500.0,0.00014852,2]
[422202137,1778688640000,-3052.0,0.00014853,5]
[422202135,1778688640000,-263.16091522,0.00014852,2]
[422202147,1778688640000,-150.60061714,0.00014899,2]
[422202145,1778688640000,-200.0,0.00014899,2]
[422202151,1778688640000,-208.40443353,0.000149,2]
[422202149,1778688640000,-151.0,0.00014899,2]
[422202163,1778688640000,-525.37657927,0.000149,2]
[422202166,1778688640000,-403.21013975,0.000149,2]
[422202159,1778688640000,-4332.32394675,0.000149,2]
[422202157,1778688640000,-600.0,0.000149,5]
[422202153,1778688640000,-262.68828964,0.000149,2]
[422202168,1778688640000,-2984.30230936,0.000149,2]
[422202155,1778688640000,-618.90342096,0.000149,2]
[422202170,1778688640000,-8396.79144065,0.00014903,2]
[422202174,1778688640000,-200.0,0.00014932,2]
[422202173,1778688640000,-6111.0,0.00014927,2]
[422202187,1778688640000,-281.49346537,0.00014986,2]
[422202176,1778688640000,-500.0,0.00014945,2]
[422202189,1778688640000,-226.02736605,0.00014986,2]
[422202180,1778688640000,-166.66,0.00014954,2]
[422202276,1778688641000,-496.3908587,0.00014127,2]
[422202280,1778688641000,-252978.91337087,0.00015,2]
[422202278,1778688641000,-6463.59977601,0.00014127,2]
[422202282,1778688641000,-9092.89488097,0.00015,2]
[422202274,1778688641000,-869.187,0.00014127,2]
[422202648,1778688643000,-472.5,0.00015,2]
[422202646,1778688643000,-1333.52600998,0.00015,2]
[422202638,1778688643000,-6320.0,0.00015,2]
[422202640,1778688643000,-53295.51097017,0.00015,2]
[422202636,1778688643000,-19747.55,0.00015,2]
[422202623,1778688643000,-6685.00283623,0.00015,2]
[422202621,1778688643000,-5947.48042219,0.00015,2]
[422202619,1778688643000,-35425.61668502,0.00015,2]
[422202667,1778688644000,-250.1850592,0.00015,2]
[422202666,1778688644000,-297.47656531,0.00015,2]
[422202696,1778688647000,-5093.71543471,0.00014281,2]
[422202697,1778688647000,-1210.6818863,0.00015,2]
[422202695,1778688647000,-2735.4622,0.00014281,2]
[422202703,1778688875000,330.0,8.219e-05,3]
[422202720,1778689610000,-215.83379509,0.00012866,2]
[422202721,1778689722000,190.7,6.822e-05,2]
[422202749,1778689831000,-5238.14857876,0.00013367,2]
[422202754,1778689831000,-161.37,0.00013377,2]
[422202750,1778689831000,-163.36,0.00013376,2]
[422202746,1778689831000,-166.73,0.00013258,2]
[422202753,1778689831000,-165336.36,0.00013377,2]
[422202751,1778689831000,-190.7,0.00013377,2]
[422202756,1778689831000,-586.2,0.00013377,2]
[422202748,1778689831000,-17478.24626706,0.00013277,2]
[422202747,1778689831000,-150.0,0.00013276,2]
[422202757,1778689831000,-632.12,0.00013377,2]
[422202743,1778689831000,-1.17255491,0.00012866,2]
[422202737,1778689831000,-1200.0,0.00012638,2]
[422202742,1778689831000,-1151.82,0.00012809,2]
[422202745,1778689831000,-302.57,0.00012954,2]
[422202741,1778689831000,-159.23,0.00012809,2]
[422202738,1778689831000,-26215.04599583,0.00012639,2]
[422202740,1778689831000,-7979.49,0.00012639,2]
[422202736,1778689831000,-300.0,0.00012638,2]
[422202739,1778689831000,-9086.31656379,0.00012639,2]
[422202735,1778689831000,-250.0,0.00012628,2]
[422202734,1778689831000,-2346.19,0.00012618,2]
[422202752,1778689831000,-346.02,0.00013377,2]
[422202744,1778689831000,-200.0,0.00012931,2]
[422202755,1778689831000,-150.0,0.00013377,2]
[422202768,1778689831000,-150.0,0.00013488,2]
[422202760,1778689831000,-924.59,0.00013447,2]
[422202758,1778689831000,-723.76,0.00013377,2]
[422202792,1778689831000,-599.58141782,0.00013637,2]
[422202784,1778689831000,-2000.0,0.00013562,2]
[422202789,1778689831000,-599.58141782,0.00013637,2]
[422202780,1778689831000,-150.0,0.00013545,2]
[422202778,1778689831000,-150.0,0.00013488,2]
[422202791,1778689831000,-599.58141782,0.00013637,2]
[422202782,1778689831000,-343.14,0.00013555,2]
[422202790,1778689831000,-599.58141782,0.00013637,2]
[422202786,1778689831000,-500.0,0.00013598,2]
[422202788,1778689831000,-599.58141782,0.00013637,2]
[422202787,1778689831000,-150.0,0.00013603,2]
[422202774,1778689831000,-150.16673947,0.00013488,2]
[422202766,1778689831000,-150.0,0.00013488,2]
[422202763,1778689831000,-152.21590126,0.00013488,2]
[422202761,1778689831000,-17478.24626701,0.00013457,2]
[422202759,1778689831000,-500.0,0.00013377,2]
[422202793,1778689831000,-599.58141782,0.00013637,2]
[422202769,1778689831000,-150.45594311,0.00013488,2]
[422202764,1778689831000,-150.58497979,0.00013488,2]
[422202762,1778689831000,-150.0,0.00013488,2]
[422202772,1778689831000,-150.6610077,0.00013488,2]
[422202776,1778689831000,-150.0,0.00013488,2]
[422202839,1778689832000,-593.58560363,0.00013637,2]
[422202835,1778689832000,-599.58141782,0.00013637,2]
[422202833,1778689832000,-599.58141782,0.00013637,2]
[422202829,1778689832000,-599.58141782,0.00013637,2]
[422202838,1778689832000,-593.58560363,0.00013637,2]
[422202822,1778689832000,-599.58141782,0.00013637,2]
[422202827,1778689832000,-599.58141782,0.00013637,2]
[422202826,1778689832000,-599.58141782,0.00013637,2]
[422202825,1778689832000,-599.58141782,0.00013637,2]
[422202831,1778689832000,-599.58141782,0.00013637,2]
[422202828,1778689832000,-599.58141782,0.00013637,2]
[422202837,1778689832000,-593.58560363,0.00013637,2]
[422202845,1778689832000,-593.58560363,0.00013637,2]
[422202836,1778689832000,-599.58141782,0.00013637,2]
[422202834,1778689832000,-599.58141782,0.00013637,2]
[422202842,1778689832000,-593.58560363,0.00013637,2]
[422202840,1778689832000,-593.58560363,0.00013637,2]
[422202841,1778689832000,-593.58560363,0.00013637,2]
[422202843,1778689832000,-593.58560363,0.00013637,2]
[422202851,1778689832000,-593.58560363,0.00013637,2]
[422202844,1778689832000,-593.58560363,0.00013637,2]
[422202849,1778689832000,-593.58560363,0.00013637,2]
[422202850,1778689832000,-593.58560363,0.00013637,2]
[422202820,1778689832000,-599.58141782,0.00013637,2]
[422202846,1778689832000,-593.58560363,0.00013637,2]
[422202832,1778689832000,-599.58141782,0.00013637,2]
[422202818,1778689832000,-599.58141782,0.00013637,2]
[422202807,1778689832000,-599.58141782,0.00013637,2]
[422202821,1778689832000,-599.58141782,0.00013637,2]
[422202794,1778689832000,-599.58141782,0.00013637,2]
[422202795,1778689832000,-599.58141782,0.00013637,2]
[422202803,1778689832000,-599.58141782,0.00013637,2]
[422202796,1778689832000,-599.58141782,0.00013637,2]
[422202798,1778689832000,-599.58141782,0.00013637,2]
[422202797,1778689832000,-599.58141782,0.00013637,2]
[422202801,1778689832000,-599.58141782,0.00013637,2]
[422202802,1778689832000,-599.58141782,0.00013637,2]
[422202799,1778689832000,-599.58141782,0.00013637,2]
[422202800,1778689832000,-599.58141782,0.00013637,2]
[422202815,1778689832000,-599.58141782,0.00013637,2]
[422202804,1778689832000,-599.58141782,0.00013637,2]
[422202819,1778689832000,-599.58141782,0.00013637,2]
[422202805,1778689832000,-599.58141782,0.00013637,2]
[422202812,1778689832000,-599.58141782,0.00013637,2]
[422202813,1778689832000,-599.58141782,0.00013637,2]
[422202847,1778689832000,-593.58560363,0.00013637,2]
[422202806,1778689832000,-599.58141782,0.00013637,2]
[422202808,1778689832000,-599.58141782,0.00013637,2]
[422202809,1778689832000,-599.58141782,0.00013637,2]
[422202810,1778689832000,-599.58141782,0.00013637,2]
[422202814,1778689832000,-599.58141782,0.00013637,2]
[422202816,1778689832000,-599.58141782,0.00013637,2]
[422202817,1778689832000,-599.58141782,0.00013637,2]
[422202824,1778689832000,-599.58141782,0.00013637,2]
[422202823,1778689832000,-599.58141782,0.00013637,2]
[422202811,1778689832000,-599.58141782,0.00013637,2]
[422202848,1778689832000,-593.58560363,0.00013637,2]
[422202830,1778689832000,-599.58141782,0.00013637,2]
[422202852,1778689832000,-593.58560363,0.00013637,2]
[422202883,1778689832000,-166.66,0.00013699,2]
[422202884,1778689832000,-200.0,0.00013699,2]
[422202887,1778689832000,-150.0,0.00013718,2]
[422202897,1778689832000,-300.0,0.0001388,2]
[422202898,1778689832000,-300.0,0.0001388,2]
[422202886,1778689832000,-150.0,0.00013702,2]
[422202888,1778689832000,-150.0,0.00013776,2]
[422202890,1778689832000,-17478.24626701,0.00013818,2]
[422202892,1778689832000,-166.66,0.00013836,2]
[422202891,1778689832000,-150.0,0.00013834,2]
[422202889,1778689832000,-150.0,0.00013787,2]
[422202893,1778689832000,-420.0,0.00013864,2]
[422202894,1778689832000,-448.41821506,0.0001388,2]
[422202895,1778689832000,-250.0,0.0001388,2]
[422202896,1778689832000,-384.22620767,0.0001388,2]
[422202900,1778689832000,-150.0,0.00013891,2]
[422202902,1778689832000,-1680.0,0.00013901,2]
[422202899,1778689832000,-265.04593993,0.0001388,2]
[422202901,1778689832000,-343.14,0.00013894,2]
[422202906,1778689832000,-166.73,0.00013987,2]
[422202908,1778689832000,-17478.24626701,0.00013998,2]
[422202904,1778689832000,-150.0,0.00013949,2]
[422202907,1778689832000,-150.0,0.00013987,2]
[422202903,1778689832000,-150.0,0.00013916,2]
[422202909,1778689832000,-250.0,0.00014,2]
[422202853,1778689832000,-593.58560363,0.00013637,2]
[422202910,1778689832000,-150.0,0.00014006,2]
[422202881,1778689832000,-5062.25,0.00013699,2]
[422202880,1778689832000,-999.99,0.00013699,2]
[422202905,1778689832000,-166.66,0.00013973,2]
[422202882,1778689832000,-150.99,0.00013699,2]
[422202861,1778689832000,-593.58560363,0.00013637,2]
[422202859,1778689832000,-593.58560363,0.00013637,2]
[422202856,1778689832000,-593.58560363,0.00013637,2]
[422202854,1778689832000,-593.58560363,0.00013637,2]
[422202860,1778689832000,-593.58560363,0.00013637,2]
[422202855,1778689832000,-593.58560363,0.00013637,2]
[422202857,1778689832000,-593.58560363,0.00013637,2]
[422202858,1778689832000,-593.58560363,0.00013637,2]
[422202879,1778689832000,-4541.43,0.00013699,2]
[422202873,1778689832000,-526.65,0.00013698,2]
[422202862,1778689832000,-593.58560363,0.00013637,2]
[422202866,1778689832000,-17478.24626701,0.00013638,2]
[422202864,1778689832000,-593.58560363,0.00013637,2]
[422202863,1778689832000,-593.58560363,0.00013637,2]
[422202865,1778689832000,-593.58560363,0.00013637,2]
[422202878,1778689832000,-9999.99,0.00013699,2]
[422202868,1778689832000,-150.0,0.00013661,2]
[422202875,1778689832000,-500.0,0.00013698,2]
[422202877,1778689832000,-500.0,0.00013698,2]
[422202876,1778689832000,-500.0,0.00013698,2]
[422202874,1778689832000,-500.0,0.00013698,2]
[422202885,1778689832000,-2500.0,0.00013699,2]
[422202869,1778689832000,-500.0,0.00013698,2]
[422202870,1778689832000,-500.0,0.00013698,2]
[422202867,1778689832000,-23012.88613108,0.00013643,2]
[422202872,1778689832000,-500.0,0.00013698,2]
[422202871,1778689832000,-191.07480105,0.00013698,2]
[422202939,1778689833000,-17478.24626701,0.00014359,2]
[422202937,1778689833000,-7802.45852427,0.00014352,2]
[422202942,1778689833000,-255.0,0.00014391,2]
[422202943,1778689833000,-4325.45938302,0.000144,5]
[422202940,1778689833000,-166.66,0.00014384,2]
[422202941,1778689833000,-150.0,0.00014387,2]
[422202944,1778689833000,-3374.54061698,0.000144,5]
[422202947,1778689833000,-159.46738609,0.00014436,2]
[422202949,1778689833000,-150.0,0.00014468,2]
[422202948,1778689833000,-500.0,0.00014466,2]
[422202953,1778689833000,-924.59,0.00014511,2]
[422202966,1778689833000,-500.0,0.00014521,2]
[422202950,1778689833000,-150.0,0.00014487,2]
[422202955,1778689833000,-500.0,0.00014521,2]
[422202952,1778689833000,-7802.45852427,0.00014508,2]